[Event "Early-Titled-Tuesday-Blitz-October-03-2023"]
[Site "Chess.com"]
[Date "2023.10.03"]
[Round "5"]
[White "Boxerandchessplayer"]
[Black "GiorgianBarbosa"]
[Result "1-0"]
[WhiteElo "2171"]
[BlackElo "2373"]
[TimeControl "180+1"]
[EndTime "8:58:44 PDT"]
[Termination "Boxerandchessplayer won by checkmate"]

1. d4 {[%clk 0:02:56.2]} 1... Nf6 {[%clk 0:02:59.6]} 2. Nf3 {[%clk 0:02:53.8]}
2... e6 {[%clk 0:03:00.5]} 3. c4 {[%clk 0:02:52.9]} 3... d5 {[%clk 0:03:00.7]}
4. g3 {[%clk 0:02:52.9]} 4... Be7 {[%clk 0:03:00]} 5. Bg2 {[%clk 0:02:52.2]}
5... O-O {[%clk 0:03:00.9]} 6. O-O {[%clk 0:02:52]} 6... a5 {[%clk 0:03:01.7]}
7. Qc2 {[%clk 0:02:51.5]} 7... c6 {[%clk 0:03:01.5]} 8. Nbd2 {[%clk 0:02:49.4]}
8... b6 {[%clk 0:03:01.9]} 9. e4 {[%clk 0:02:48.2]} 9... Ba6 {[%clk 0:03:00]}
10. b3 {[%clk 0:02:46]} 10... Nbd7 {[%clk 0:02:57.5]} 11. Re1 {[%clk 0:02:45]}
11... dxc4 {[%clk 0:02:50.4]} 12. Nxc4 {[%clk 0:02:40.8]} 12... Rc8 {[%clk
0:02:41.4]} 13. Rd1 {[%clk 0:02:03.4]} 13... Re8 {[%clk 0:02:29]} 14. Bb2 {[%clk
0:01:57]} 14... h6 {[%clk 0:02:17.9]} 15. Nfe5 {[%clk 0:01:49.2]} 15... b5
{[%clk 0:02:11]} 16. Ne3 {[%clk 0:01:34.6]} 16... Nxe5 {[%clk 0:02:05.9]} 17.
dxe5 {[%clk 0:01:35.5]} 17... Nd7 {[%clk 0:02:06.3]} 18. f4 {[%clk 0:01:34.6]}
18... Qb6 {[%clk 0:02:00.3]} 19. Rxd7 {[%clk 0:01:15.4]} 19... Qxe3+ {[%clk
0:01:59.2]} 20. Qf2 {[%clk 0:01:16.3]} 20... Qxf2+ {[%clk 0:01:49.9]} 21. Kxf2
{[%clk 0:01:17.2]} 21... Bc5+ {[%clk 0:01:48]} 22. Bd4 {[%clk 0:01:15.3]} 22...
Bf8 {[%clk 0:01:27.1]} 23. Bb6 {[%clk 0:00:52.7]} 23... a4 {[%clk 0:01:20.1]}
24. Rc1 {[%clk 0:00:41.8]} 24... axb3 {[%clk 0:01:05.3]} 25. axb3 {[%clk
0:00:39.7]} 25... b4 {[%clk 0:01:01.2]} 26. Bf1 {[%clk 0:00:38.8]} 26... Bxf1
{[%clk 0:00:47.7]} 27. Kxf1 {[%clk 0:00:39.7]} 27... c5 {[%clk 0:00:43.8]} 28.
Rc7 {[%clk 0:00:28.6]} 28... Rxc7 {[%clk 0:00:34.5]} 29. Bxc7 {[%clk 0:00:28.4]}
29... Ra8 {[%clk 0:00:34.6]} 30. Bd6 {[%clk 0:00:28.7]} 30... Ra3 {[%clk
0:00:31.8]} 31. Rxc5 {[%clk 0:00:28.4]} 31... Ra8 {[%clk 0:00:20.6]} 32. Rb5
{[%clk 0:00:24.3]} 32... Rd8 {[%clk 0:00:18.5]} 33. Bxf8 {[%clk 0:00:20.8]}
33... Kxf8 {[%clk 0:00:19.4]} 34. Rxb4 {[%clk 0:00:21.4]} 34... Rd2 {[%clk
0:00:19.2]} 35. Kg1 {[%clk 0:00:21.1]} 35... g6 {[%clk 0:00:18.3]} 36. Rb7
{[%clk 0:00:20.4]} 36... Rb2 {[%clk 0:00:16.3]} 37. b4 {[%clk 0:00:19.9]} 37...
h5 {[%clk 0:00:17.2]} 38. Rb8+ {[%clk 0:00:17.2]} 38... Kg7 {[%clk 0:00:16.5]}
39. Rb7 {[%clk 0:00:17.9]} 39... h4 {[%clk 0:00:15.4]} 40. gxh4 {[%clk
0:00:10.4]} 40... Re2 {[%clk 0:00:15.3]} 41. b5 {[%clk 0:00:08]} 41... Rxe4
{[%clk 0:00:14.9]} 42. b6 {[%clk 0:00:07.8]} 42... Rxf4 {[%clk 0:00:15]} 43. Rb8
{[%clk 0:00:06.7]} 43... Rxh4 {[%clk 0:00:13.9]} 44. b7 {[%clk 0:00:07.6]} 44...
Rb4 {[%clk 0:00:14.4]} 45. Kf2 {[%clk 0:00:07.5]} 45... Rb6 {[%clk 0:00:07.4]}
46. Ke3 {[%clk 0:00:07.8]} 46... Rb1 {[%clk 0:00:07.1]} 47. Kd4 {[%clk
0:00:08.4]} 47... Rd1+ {[%clk 0:00:07.2]} 48. Kc3 {[%clk 0:00:08.8]} 48... Rc1+
{[%clk 0:00:07.7]} 49. Kd2 {[%clk 0:00:09.2]} 49... Rb1 {[%clk 0:00:07.7]} 50.
Kc2 {[%clk 0:00:10.1]} 50... Rb6 {[%clk 0:00:08.2]} 51. h4 {[%clk 0:00:10]}
51... Rb5 {[%clk 0:00:07.3]} 52. Kc3 {[%clk 0:00:10.5]} 52... Rb1 {[%clk
0:00:07.6]} 53. Kc2 {[%clk 0:00:10.7]} 53... Rb6 {[%clk 0:00:07.9]} 54. Kc3
{[%clk 0:00:11]} 54... Rb5 {[%clk 0:00:08.3]} 55. Kc4 {[%clk 0:00:11.8]} 55...
Rb1 {[%clk 0:00:08.6]} 56. Kc5 {[%clk 0:00:11.9]} 56... Rc1+ {[%clk 0:00:08.1]}
57. Kd6 {[%clk 0:00:12]} 57... Rd1+ {[%clk 0:00:08.5]} 58. Ke7 {[%clk
0:00:11.4]} 58... Rb1 {[%clk 0:00:08.7]} 59. Kd7 {[%clk 0:00:05.8]} 59... Rd1+
{[%clk 0:00:07.9]} 60. Kc7 {[%clk 0:00:06.5]} 60... Rc1+ {[%clk 0:00:08.3]} 61.
Kd8 {[%clk 0:00:06.9]} 61... Rb1 {[%clk 0:00:06.9]} 62. Ke8 {[%clk 0:00:07.5]}
62... Rb2 {[%clk 0:00:05.9]} 63. Ke7 {[%clk 0:00:06.2]} 63... Rb1 {[%clk
0:00:06]} 64. Ke8 {[%clk 0:00:06.3]} 64... Rb2 {[%clk 0:00:06.5]} 65. Ke7 {[%clk
0:00:06.6]} 65... Rb5 {[%clk 0:00:07.1]} 66. Kd7 {[%clk 0:00:05.1]} 66... Rb1
{[%clk 0:00:07.3]} 67. Kd6 {[%clk 0:00:05.2]} 67... Rd1+ {[%clk 0:00:07.3]} 68.
Kc5 {[%clk 0:00:05.4]} 68... Rc1+ {[%clk 0:00:07.5]} 69. Kb5 {[%clk 0:00:06]}
69... Rb1+ {[%clk 0:00:08]} 70. Ka6 {[%clk 0:00:06.9]} 70... Ra1+ {[%clk
0:00:08.5]} 71. Kb6 {[%clk 0:00:07.1]} 71... Rb1+ {[%clk 0:00:09.4]} 72. Kc7
{[%clk 0:00:07.3]} 72... Rc1+ {[%clk 0:00:09.8]} 73. Kd7 {[%clk 0:00:08]} 73...
Rb1 {[%clk 0:00:09.7]} 74. Ke7 {[%clk 0:00:08.3]} 74... Rb6 {[%clk 0:00:08.5]}
75. Ke8 {[%clk 0:00:08.2]} 75... Rb5 {[%clk 0:00:09.1]} 76. Kd7 {[%clk
0:00:08.6]} 76... Rb4 {[%clk 0:00:09.6]} 77. Kd8 {[%clk 0:00:07.7]} 77... Rb3
{[%clk 0:00:09.6]} 78. Ke7 {[%clk 0:00:08.3]} 78... Rb4 {[%clk 0:00:08.7]} 79.
Kd7 {[%clk 0:00:09]} 79... Rd4+ {[%clk 0:00:08.6]} 80. Kc6 {[%clk 0:00:08.5]}
80... Rc4+ {[%clk 0:00:09]} 81. Kb5 {[%clk 0:00:08.7]} 81... Rc1 {[%clk
0:00:09.3]} 82. Rc8 {[%clk 0:00:07.6]} 82... Rb1+ {[%clk 0:00:09.6]} 83. Kc6
{[%clk 0:00:08.2]} 83... Rc1+ {[%clk 0:00:08.3]} 84. Kd7 {[%clk 0:00:07.6]}
84... Rd1+ {[%clk 0:00:09]} 85. Ke7 {[%clk 0:00:07]} 85... Rb1 {[%clk
0:00:09.3]} 86. b8=Q {[%clk 0:00:07.3]} 86... Rxb8 {[%clk 0:00:08.5]} 87. Rxb8
{[%clk 0:00:08.2]} 87... g5 {[%clk 0:00:09.2]} 88. hxg5 {[%clk 0:00:07.6]} 88...
Kg6 {[%clk 0:00:10.1]} 89. Rg8+ {[%clk 0:00:07.5]} 89... Kf5 {[%clk 0:00:10.5]}
90. Kxf7 {[%clk 0:00:07.3]} 90... Kxe5 {[%clk 0:00:11.4]} 91. g6 {[%clk
0:00:08.2]} 91... Kf5 {[%clk 0:00:12.3]} 92. g7 {[%clk 0:00:09.1]} 92... e5
{[%clk 0:00:13.2]} 93. Re8 {[%clk 0:00:09.4]} 93... e4 {[%clk 0:00:14]} 94. g8=Q
{[%clk 0:00:10]} 94... e3 {[%clk 0:00:14.3]} 95. Qg6+ {[%clk 0:00:10.7]} 95...
Kf4 {[%clk 0:00:15]} 96. Re4+ {[%clk 0:00:11]} 96... Kf3 {[%clk 0:00:15.9]} 97.
Qg4+ {[%clk 0:00:11.6]} 97... Kf2 {[%clk 0:00:16.1]} 98. Qf4+ {[%clk 0:00:12.3]}
98... Ke2 {[%clk 0:00:17]} 99. Rxe3+ {[%clk 0:00:11.7]} 99... Kd2 {[%clk
0:00:17.2]} 100. Qd4+ {[%clk 0:00:12.4]} 100... Kc2 {[%clk 0:00:16.5]} 101. Rc3+
{[%clk 0:00:13.2]} 101... Kb1 {[%clk 0:00:16.7]} 102. Qb4+ {[%clk 0:00:13.9]}
102... Ka2 {[%clk 0:00:17.6]} 103. Ra3# {[%clk 0:00:14.2]} 1-0

[Event "Early-Titled-Tuesday-Blitz-October-03-2023"]
[Site "Chess.com"]
[Date "2023.10.03"]
[Round "5"]
[White "dodoucb"]
[Black "bazar-wokzal"]
[Result "1-0"]
[WhiteElo "2456"]
[BlackElo "2620"]
[TimeControl "180+1"]
[EndTime "8:59:02 PDT"]
[Termination "dodoucb won on time"]

1. Nf3 {[%clk 0:02:57.5]} 1... c5 {[%clk 0:02:58.7]} 2. e3 {[%clk 0:02:55.5]}
2... g6 {[%clk 0:02:57.9]} 3. c4 {[%clk 0:02:51.9]} 3... Bg7 {[%clk 0:02:57.8]}
4. Nc3 {[%clk 0:02:52.5]} 4... Nf6 {[%clk 0:02:57.6]} 5. b3 {[%clk 0:02:52.7]}
5... d5 {[%clk 0:02:56.7]} 6. cxd5 {[%clk 0:02:53.6]} 6... Nxd5 {[%clk
0:02:56.4]} 7. Bb2 {[%clk 0:02:54.5]} 7... O-O {[%clk 0:02:52.1]} 8. Be2 {[%clk
0:02:54.5]} 8... Nc6 {[%clk 0:02:40.5]} 9. O-O {[%clk 0:02:52.4]} 9... b6 {[%clk
0:02:33.5]} 10. Rc1 {[%clk 0:01:57.6]} 10... Bb7 {[%clk 0:02:31.7]} 11. Na4
{[%clk 0:01:56.9]} 11... Bxb2 {[%clk 0:02:21.3]} 12. Nxb2 {[%clk 0:01:56.1]}
12... e5 {[%clk 0:02:01.5]} 13. Qc2 {[%clk 0:01:35.7]} 13... Qe7 {[%clk
0:01:49.6]} 14. d3 {[%clk 0:01:19.5]} 14... Rad8 {[%clk 0:01:44.8]} 15. Rfd1
{[%clk 0:01:19.2]} 15... Rd7 {[%clk 0:01:40.3]} 16. h3 {[%clk 0:01:02.6]} 16...
Rfd8 {[%clk 0:01:39.7]} 17. Qb1 {[%clk 0:01:02.5]} 17... Kg7 {[%clk 0:01:33.2]}
18. a3 {[%clk 0:01:01.3]} 18... f6 {[%clk 0:01:32]} 19. Na4 {[%clk 0:00:57.6]}
19... Nc7 {[%clk 0:01:19.9]} 20. Qb2 {[%clk 0:00:53.3]} 20... Ne6 {[%clk
0:01:15.6]} 21. Nc3 {[%clk 0:00:43.8]} 21... h6 {[%clk 0:00:50.3]} 22. Rb1
{[%clk 0:00:32]} 22... Kh7 {[%clk 0:00:48]} 23. b4 {[%clk 0:00:31.1]} 23... f5
{[%clk 0:00:40.3]} 24. Na4 {[%clk 0:00:22.6]} 24... cxb4 {[%clk 0:00:37.1]} 25.
axb4 {[%clk 0:00:20.8]} 25... b5 {[%clk 0:00:28.5]} 26. Nc3 {[%clk 0:00:14]}
26... a6 {[%clk 0:00:28.5]} 27. Na2 {[%clk 0:00:13.8]} 27... Nc7 {[%clk
0:00:26.3]} 28. Rbc1 {[%clk 0:00:09.1]} 28... Nd5 {[%clk 0:00:26]} 29. Rb1
{[%clk 0:00:07.6]} 29... Rd6 {[%clk 0:00:24.8]} 30. Ne1 {[%clk 0:00:07.7]} 30...
R8d7 {[%clk 0:00:25]} 31. Bf3 {[%clk 0:00:07.8]} 31... Qd8 {[%clk 0:00:24.4]}
32. Rdc1 {[%clk 0:00:06.5]} 32... Nde7 {[%clk 0:00:21.9]} 33. Nc3 {[%clk
0:00:04.3]} 33... Nb8 {[%clk 0:00:18.4]} 34. Ne2 {[%clk 0:00:03.3]} 34... Bxf3
{[%clk 0:00:17]} 35. Nxf3 {[%clk 0:00:03.2]} 35... Nbc6 {[%clk 0:00:14.2]} 36.
Nxe5 {[%clk 0:00:03.2]} 36... Nxe5 {[%clk 0:00:14.5]} 37. Qxe5 {[%clk
0:00:04.1]} 37... Rxd3 {[%clk 0:00:14.5]} 38. Nd4 {[%clk 0:00:04.5]} 38... Qg8
{[%clk 0:00:09.2]} 39. Rc7 {[%clk 0:00:02.6]} 39... Rxc7 {[%clk 0:00:07]} 40.
Qxc7 {[%clk 0:00:03.5]} 40... Qf7 {[%clk 0:00:07.2]} 41. Nc6 {[%clk 0:00:01.4]}
41... Rc3 {[%clk 0:00:02.5]} 42. Qxe7 {[%clk 0:00:01.3]} 42... Qxe7 {[%clk
0:00:02.8]} 43. Nxe7 {[%clk 0:00:02.2]} 43... Kg7 {[%clk 0:00:01.5]} 44. Nd5
{[%clk 0:00:02.4]} 44... Rc4 {[%clk 0:00:01.9]} 45. Nf4 {[%clk 0:00:02.7]} 45...
Kf7 {[%clk 0:00:02]} 46. Nd3 {[%clk 0:00:02.5]} 46... g5 {[%clk 0:00:02.4]} 47.
Nc5 {[%clk 0:00:02.9]} 47... Kf6 {[%clk 0:00:02]} 48. Nxa6 {[%clk 0:00:03.1]}
48... Rc2 {[%clk 0:00:02.1]} 49. Nc5 {[%clk 0:00:03.5]} 49... Ke5 {[%clk
0:00:02.3]} 50. Nd3+ {[%clk 0:00:03.4]} 50... Ke4 {[%clk 0:00:02.1]} 51. Nc5+
{[%clk 0:00:03.8]} 51... Kd5 {[%clk 0:00:02.4]} 52. Rd1+ {[%clk 0:00:04]} 52...
Kc4 {[%clk 0:00:02.7]} 53. Rd4+ {[%clk 0:00:04.8]} 53... Kc3 {[%clk 0:00:02.6]}
54. g4 {[%clk 0:00:05.1]} 54... fxg4 {[%clk 0:00:01.9]} 55. hxg4 {[%clk
0:00:05]} 55... Rb2 {[%clk 0:00:02.4]} 56. Ne4+ {[%clk 0:00:04.3]} 56... Kb3
{[%clk 0:00:01.6]} 57. Ng3 {[%clk 0:00:04.5]} 57... Ka3 {[%clk 0:00:01.1]} 58.
Nf5 {[%clk 0:00:04.8]} 58... Rxb4 {[%clk 0:00:01.4]} 59. Rd3+ {[%clk 0:00:04.2]}
59... Rb3 {[%clk 0:00:01.7]} 60. Rd6 {[%clk 0:00:04.5]} 60... b4 {[%clk
0:00:01.7]} 61. Ra6+ {[%clk 0:00:05]} 61... Kb2 {[%clk 0:00:02.1]} 62. Nxh6
{[%clk 0:00:05.8]} 62... Ra3 {[%clk 0:00:02.4]} 63. Rb6 {[%clk 0:00:05.7]} 63...
b3 {[%clk 0:00:02.9]} 64. Nf5 {[%clk 0:00:06.6]} 64... Kc3 {[%clk 0:00:02.3]}
65. Nd4 {[%clk 0:00:04.3]} 65... b2 {[%clk 0:00:02.7]} 66. Kg2 {[%clk 0:00:04]}
66... Ra1 {[%clk 0:00:02.7]} 67. Rc6+ {[%clk 0:00:04.4]} 67... Kd3 {[%clk
0:00:02.7]} 68. Rb6 {[%clk 0:00:02.8]} 68... b1=Q {[%clk 0:00:02.9]} 69. Rxb1
{[%clk 0:00:03.4]} 69... Rxb1 {[%clk 0:00:03.8]} 70. Nf3 {[%clk 0:00:03.1]}
70... Rb4 {[%clk 0:00:03.1]} 71. Kg3 {[%clk 0:00:02.7]} 71... Rb1 {[%clk
0:00:03.3]} 72. Nxg5 {[%clk 0:00:02.5]} 72... Rg1+ {[%clk 0:00:03.4]} 73. Kf3
{[%clk 0:00:03.2]} 73... Kc4 {[%clk 0:00:03.3]} 74. Ne6 {[%clk 0:00:03.6]} 74...
Kd5 {[%clk 0:00:03.5]} 75. Nf4+ {[%clk 0:00:04.5]} 75... Ke5 {[%clk 0:00:03.8]}
76. Nh3 {[%clk 0:00:04.7]} 76... Rh1 {[%clk 0:00:03.7]} 77. Kg2 {[%clk 0:00:05]}
77... Ra1 {[%clk 0:00:03.9]} 78. Kf3 {[%clk 0:00:05]} 78... Rh1 {[%clk
0:00:03.4]} 79. Kg2 {[%clk 0:00:05.3]} 79... Ra1 {[%clk 0:00:03.5]} 80. Ng5
{[%clk 0:00:05.8]} 80... Kf6 {[%clk 0:00:03.3]} 81. Nf3 {[%clk 0:00:06.2]} 81...
Ra4 {[%clk 0:00:02.8]} 82. Kg3 {[%clk 0:00:06.3]} 82... Ra1 {[%clk 0:00:03.2]}
83. g5+ {[%clk 0:00:06.6]} 83... Kg6 {[%clk 0:00:03.4]} 84. Kf4 {[%clk
0:00:07.2]} 84... Ra4+ {[%clk 0:00:03.8]} 85. e4 {[%clk 0:00:07.7]} 85... Rb4
{[%clk 0:00:04]} 86. Ne5+ {[%clk 0:00:08]} 86... Kg7 {[%clk 0:00:04.2]} 87. f3
{[%clk 0:00:08.9]} 87... Ra4 {[%clk 0:00:03]} 88. Ng4 {[%clk 0:00:09.8]} 88...
Ra8 {[%clk 0:00:02.7]} 89. Ne3 {[%clk 0:00:10.2]} 89... Rf8+ {[%clk 0:00:02.7]}
90. Nf5+ {[%clk 0:00:10.8]} 90... Kg6 {[%clk 0:00:03.6]} 91. Kg4 {[%clk
0:00:10.4]} 91... Re8 {[%clk 0:00:03.9]} 92. Nh4+ {[%clk 0:00:09.2]} 92... Kg7
{[%clk 0:00:03.8]} 93. Kf4 {[%clk 0:00:07.9]} 93... Rf8+ {[%clk 0:00:04.3]} 94.
Ke3 {[%clk 0:00:07.3]} 94... Ra8 {[%clk 0:00:03]} 95. f4 {[%clk 0:00:05.5]}
95... Ra3+ {[%clk 0:00:03.1]} 96. Kd4 {[%clk 0:00:05.8]} 96... Ra4+ {[%clk
0:00:03.5]} 97. Kd5 {[%clk 0:00:05.8]} 97... Ra5+ {[%clk 0:00:04]} 98. Ke6
{[%clk 0:00:06.1]} 98... Ra6+ {[%clk 0:00:04.4]} 99. Kf5 {[%clk 0:00:06.4]}
99... Ra5+ {[%clk 0:00:04.5]} 100. e5 {[%clk 0:00:07.1]} 100... Ra1 {[%clk
0:00:03.7]} 101. Nf3 {[%clk 0:00:06.9]} 101... Ra3 {[%clk 0:00:03.7]} 102. Nd4
{[%clk 0:00:06.6]} 102... Ra5 {[%clk 0:00:03.6]} 103. Ne6+ {[%clk 0:00:06.3]}
103... Kf7 {[%clk 0:00:03.9]} 104. g6+ {[%clk 0:00:06.3]} 104... Kg8 {[%clk
0:00:04.5]} 105. Kf6 {[%clk 0:00:06.1]} 105... Ra1 {[%clk 0:00:03.9]} 106. f5
{[%clk 0:00:06.3]} 106... Ra8 {[%clk 0:00:03.5]} 107. Ng5 {[%clk 0:00:04.9]}
107... Rf8+ {[%clk 0:00:03.7]} 108. Nf7 {[%clk 0:00:05.5]} 108... Ra8 {[%clk
0:00:03.4]} 109. e6 {[%clk 0:00:06.1]} 109... Ra6 {[%clk 0:00:03.4]} 110. Nh6+
{[%clk 0:00:05.7]} 1-0